fUST/lending_fUST_20260206
["ID","MTS","AMOUNT","RATE_DAILY","PERIOD"]
[404595016,1770323432154,-500.0,0.00021581,2]
[404595017,1770323432163,-95.80835468,0.00021581,2]
[404595018,1770323432178,-404.19164532,0.00021581,2]
[404595019,1770323432187,-500.0,0.00021581,2]
[404595020,1770323432196,-500.0,0.00021581,2]
[404595021,1770323432210,-500.0,0.00021581,2]
[404595022,1770323432219,-500.0,0.00021581,2]
[404595023,1770323432228,-770.80835468,0.00021582,2]
[404595024,1770323432239,-1153.528,0.00021582,2]
[404595025,1770323432250,-6441.52221451,0.00021582,2]
[404595068,1770323437701,-5000.0,0.00021366,2]
[404595071,1770323437717,-8134.47976971,0.00021582,2]
[404595073,1770323437727,-207.032049,0.00021631,2]
[404595075,1770323437736,-250.0,0.00021918,45]
[404595076,1770323437746,-150.99999926,0.00025,5]
[404595078,1770323437755,-172.0,0.00027781,14]
[404595081,1770323437765,-1668.7880344,0.00029219,2]
[404595084,1770323437775,-155.27499095,0.00029388,2]
[404595086,1770323437784,-155.27499095,0.00029685,2]
[404595088,1770323437793,-155.27499095,0.00029833,10]
[404595090,1770323437802,-500.0,0.00029999,2]
[404595092,1770323437812,-16001.7196342,0.0003,14]
[404595094,1770323437821,-6071.36976274,0.00031,30]
[404595096,1770323437830,-155.27499095,0.00031061,10]
[404595098,1770323437839,-203.545314,0.00031672,2]
[404595100,1770323437848,-164.0,0.00032164,14]
[404595101,1770323437857,-155.27499095,0.00032288,10]
[404595103,1770323437867,-338.33543,0.000323,120]
[404595105,1770323437876,-152.365,0.00032503,32]
[404595108,1770323437886,-500.0,0.00032877,7]
[404595109,1770323437896,-500.0,0.00032877,7]
[404595112,1770323437905,-500.0,0.00032877,7]
[404595114,1770323437914,-500.0,0.00032877,7]
[404595115,1770323437923,-500.0,0.00032877,7]
[404595118,1770323437933,-430.96939879,0.00032877,7]
[404595120,1770323437942,-203.545314,0.00033005,2]
[404595122,1770323437955,-273.20827184,0.00033282,2]
[404595123,1770323437964,-528.51104018,0.00033425,2]
[404595125,1770323437974,-155.27499095,0.00033516,24]
[404595128,1770323437984,-203.545314,0.00034338,2]
[404595130,1770323437994,-475.0,0.00034662,120]
[404595132,1770323438003,-475.0,0.00034662,120]
[404595134,1770323438013,-475.0,0.00034662,120]
[404595135,1770323438022,-475.0,0.00034662,120]
[404595137,1770323438032,-475.0,0.00034662,120]
[404595139,1770323438042,-435.972,0.00034662,120]
[404595141,1770323438052,-155.27499095,0.00034743,27]
[404595143,1770323438062,-396.61442172,0.0003479,5]
[404595145,1770323438072,-187.14510579,0.0003481,2]
[404595147,1770323438081,-3608.96,0.0003499,10]
[404595149,1770323438091,-42449.61472677,0.00035,2]
[404595152,1770323438101,-1424.54906634,0.00035,120]
[404595154,1770323438110,-365.257,0.00035,60]
[404595155,1770323438120,-706.505041,0.00035081,2]
[404595157,1770323438129,-403.99766942,0.00035565,2]
[404595159,1770323438139,-5052.885502,0.00035648,60]
[404595161,1770323438148,-203.545314,0.00035672,2]
[404595163,1770323438157,-189.92643376,0.00035735,2]
[404595165,1770323438167,-292.489248,0.00035743,60]
[404595167,1770323438177,-4935.376538,0.00036003,60]
[404595169,1770323438188,-491.77488932,0.00036181,2]
[404595171,1770323438198,-951.31987232,0.00036285,2]
[404595173,1770323438213,-313.12,0.00036902,60]
[404595175,1770323438223,-313.12,0.00037002,60]
[404595177,1770323438232,-203.545314,0.00037005,2]
[404595179,1770323438242,-298.45329328,0.00037026,7]
[404595180,1770323438252,-154.28231822,0.00037026,7]
[404595181,1770323438261,-313.12,0.00037102,60]
[404595183,1770323438271,-313.12,0.00037202,60]
[404595185,1770323438280,-313.12,0.00037302,60]
[404595186,1770323438289,-153.81,0.00037398,60]
[404595188,1770323438299,-153.97,0.00037398,60]
[404595189,1770323438309,-772.23,0.00037402,60]
[404595191,1770323438319,-313.12,0.00037402,60]
[404595193,1770323438329,-360.60855003,0.00037437,2]
[404595194,1770323438339,-153.62,0.00037498,60]
[404595195,1770323438349,-153.46,0.00037498,60]
[404595196,1770323438359,-153.81,0.00037498,60]
[404595197,1770323438368,-153.97,0.00037498,60]
[404595198,1770323438377,-772.23,0.00037502,60]
[404595199,1770323438387,-313.12,0.00037502,60]
[404595200,1770323438396,-263.71091141,0.00037529,2]
[404595201,1770323438410,-153.62,0.00037598,60]
[404595202,1770323438419,-153.46,0.00037598,60]
[404595203,1770323438429,-153.81,0.00037598,60]
[404595204,1770323438438,-153.97,0.00037598,60]
[404595205,1770323438449,-772.23,0.00037602,60]
[404595206,1770323438462,-313.12,0.00037602,60]
[404595207,1770323438472,-1419.09843482,0.00037615,3]
[404595208,1770323438482,-1000.0,0.00037627,2]
[404595209,1770323438492,-151.0,0.00037627,2]
[404595210,1770323438501,-250.0,0.00037627,2]
[404595211,1770323438512,-1000.0,0.00037627,2]
[404595212,1770323438521,-1000.0,0.00037627,2]
[404595213,1770323438531,-1000.0,0.00037627,2]
[404595214,1770323438541,-1000.0,0.00037627,2]
[404595215,1770323438552,-1000.0,0.00037627,2]
[404595216,1770323438563,-1000.0,0.00037627,2]
[404595217,1770323438573,-1000.0,0.00037627,2]
[404595218,1770323438583,-1000.0,0.00037627,2]
[404595219,1770323438594,-250.0,0.00037627,2]
[404595220,1770323438604,-1000.0,0.00037627,2]
[404595221,1770323438613,-1000.0,0.00037627,2]
[404595222,1770323438623,-1000.0,0.00037627,2]
[404595223,1770323438632,-250.0,0.00037627,2]
[404595224,1770323438642,-1000.0,0.00037627,2]
[404595225,1770323438651,-250.0,0.00037627,2]
[404595226,1770323438660,-250.0,0.00037627,2]
[404595227,1770323438669,-250.0,0.00037627,2]
[404595228,1770323438679,-500.0,0.00037627,2]
[404595229,1770323438688,-500.0,0.00037627,2]
[404595230,1770323438698,-250.0,0.00037627,2]
[404595231,1770323438714,-500.0,0.00037627,2]
[404595232,1770323438723,-250.0,0.00037627,2]
[404595233,1770323438733,-500.0,0.00037627,2]
[404595234,1770323438866,-500.0,0.00037627,2]
[404595235,1770323438876,-250.0,0.00037627,2]
[404595236,1770323438886,-194.72792766,0.00037627,2]
[404595237,1770323438895,-250.0,0.00037627,2]
[404595238,1770323438908,-500.0,0.00037627,2]
[404595239,1770323438929,-500.0,0.00037627,2]
[404595240,1770323438946,-250.0,0.00037627,2]
[404595241,1770323438961,-201.93286099,0.00037627,2]
[404595242,1770323438972,-250.0,0.00037627,2]
[404595243,1770323438982,-500.0,0.00037627,2]
[404595244,1770323438992,-250.0,0.00037627,2]
[404595245,1770323439002,-209.40437684,0.00037627,2]
[404595246,1770323439012,-250.0,0.00037627,2]
[404595247,1770323439021,-500.0,0.00037627,2]
[404595248,1770323439030,-500.0,0.00037627,2]
[404595249,1770323439041,-250.0,0.00037627,2]
[404595250,1770323439050,-217.15233878,0.00037627,2]
[404595251,1770323439060,-250.0,0.00037627,2]
[404595252,1770323439072,-500.0,0.00037627,2]
[404595253,1770323439083,-250.0,0.00037627,2]
[404595254,1770323439092,-250.0,0.00037627,2]
[404595255,1770323439103,-225.18697532,0.00037627,2]
[404595256,1770323439115,-250.0,0.00037627,2]
[404595257,1770323439126,-500.0,0.00037627,2]
[404595258,1770323439135,-250.0,0.00037627,2]
[404595259,1770323439145,-250.0,0.00037627,2]
[404595261,1770323439157,-233.51889341,0.00037627,2]
[404595263,1770323439167,-250.0,0.00037627,2]
[404595265,1770323439177,-250.0,0.00037627,2]
[404595267,1770323439186,-250.0,0.00037627,2]
[404595269,1770323439196,-242.15909246,0.00037627,2]
[404595270,1770323439208,-250.0,0.00037627,2]
[404595271,1770323439219,-250.0,0.00037627,2]
[404595272,1770323439228,-250.0,0.00037627,2]
[404595273,1770323439238,-250.0,0.00037627,2]
[404595274,1770323439249,-250.0,0.00037627,2]
[404595275,1770323439258,-250.0,0.00037627,2]
[404595276,1770323439268,-250.0,0.00037627,2]
[404595277,1770323439277,-250.0,0.00037627,2]
[404595278,1770323439287,-251.11897888,0.00037627,2]
[404595279,1770323439296,-250.0,0.00037627,2]
[404595280,1770323439306,-250.0,0.00037627,2]
[404595281,1770323439316,-250.0,0.00037627,2]
[404595282,1770323439326,-250.0,0.00037627,2]
[404595284,1770323439335,-250.0,0.00037627,2]
[404595285,1770323439344,-250.0,0.00037627,2]
[404595287,1770323439354,-260.4103811,0.00037627,2]
[404595288,1770323439363,-250.0,0.00037627,2]
[404595289,1770323439373,-250.0,0.00037627,2]
[404595290,1770323439383,-250.0,0.00037627,2]
[404595291,1770323439394,-270.0455652,0.00037627,2]
[404595292,1770323439405,-250.0,0.00037627,2]
[404595294,1770323439414,-250.0,0.00037627,2]
[404595297,1770323439424,-280.03725112,0.00037627,2]
[404595299,1770323439434,-250.0,0.00037627,2]
[404595301,1770323439443,-250.0,0.00037627,2]
[404595302,1770323439457,-290.39862941,0.00037627,2]
[404595304,1770323439469,-250.0,0.00037627,2]
[404595305,1770323439478,-301.1433787,0.00037627,2]
[404595306,1770323439488,-250.0,0.00037627,2]
[404595307,1770323439497,-250.0,0.00037627,2]
[404595308,1770323439514,-250.0,0.00037627,2]
[404595309,1770323439532,-250.0,0.00037627,2]
[404595310,1770323439541,-153.62,0.00037698,60]
[404595311,1770323439551,-153.51,0.00037698,60]
[404595312,1770323439561,-153.81,0.00037698,60]
[404595313,1770323439571,-153.97,0.00037698,60]
[404595314,1770323439582,-269.66,0.000377,7]
[404595315,1770323439592,-575.22,0.000377,30]
[404595316,1770323439603,-772.23,0.00037702,60]
[404595317,1770323439614,-313.12,0.00037702,60]
[404595318,1770323439625,-153.62,0.00037798,60]
[404595319,1770323439635,-153.81,0.00037798,60]
[404595320,1770323439645,-772.27,0.00037802,60]
[404595321,1770323439655,-313.12,0.00037802,60]
[404595322,1770323439665,-473.35,0.00037888,3]
[404595323,1770323439675,-153.62,0.00037898,60]
[404595324,1770323439685,-153.81,0.00037898,60]
[404595325,1770323439694,-313.12,0.00037902,60]
[404595326,1770323439709,-157.78,0.00037988,3]
[404595327,1770323439722,-153.62,0.00037998,60]
[404595328,1770323439731,-153.81,0.00037998,60]
[404595329,1770323439740,-153.97,0.00037998,60]
[404595330,1770323439749,-5000.0,0.00038,2]
[404595331,1770323439759,-313.12,0.00038002,60]
[404595332,1770323439769,-153.62,0.00038098,60]
[404595334,1770323439779,-153.81,0.00038098,60]
[404595335,1770323439788,-153.97,0.00038098,60]
[404595336,1770323439797,-313.12,0.00038102,60]
[404595337,1770323439807,-1419.09843482,0.00038188,3]
[404595338,1770323439817,-153.62,0.00038198,60]
[404595339,1770323439827,-153.81,0.00038198,60]
[404595340,1770323439836,-153.97,0.00038198,60]
[404595341,1770323439846,-313.12,0.00038202,60]
[404595342,1770323439856,-153.62,0.00038298,60]
[404595343,1770323439865,-153.81,0.00038298,60]
[404595344,1770323439875,-153.97,0.00038298,60]
[404595345,1770323439885,-313.12,0.00038302,60]
[404595346,1770323439894,-203.545314,0.00038338,2]
[404595347,1770323439904,-800.0,0.00038356,30]
[404595349,1770323439914,-153.62,0.00038398,120]
[404595351,1770323439924,-153.81,0.00038398,120]
[404595352,1770323439933,-153.97,0.00038398,120]
[404595353,1770323439942,-313.12,0.00038402,120]
[404595354,1770323439951,-153.62,0.00038498,120]
[404595355,1770323439965,-153.97,0.00038498,120]
[404595356,1770323439975,-313.12,0.00038502,120]
[404595357,1770323439985,-153.62,0.00038598,120]
[404595358,1770323439996,-153.97,0.00038598,120]
[404595359,1770323440006,-313.12,0.00038602,120]
[404595360,1770323440016,-153.62,0.00038698,120]
[404595362,1770323440026,-313.12,0.00038702,120]
[404595364,1770323440037,-153.62,0.00038798,120]
[404595365,1770323440047,-575.22,0.000388,30]
[404595366,1770323440057,-313.12,0.00038802,120]
[404595367,1770323440066,-153.62,0.00038898,120]
[404595368,1770323440076,-269.66,0.000389,7]
[404595369,1770323440086,-313.12,0.00038902,120]
[404595370,1770323440095,-800.0,0.00038904,30]
[404595371,1770323440104,-153.62,0.00038998,120]
[404595372,1770323440114,-487.0,0.00038998,2]
[404595373,1770323440123,-487.0,0.00038998,2]
[404595374,1770323440132,-487.0,0.00038998,2]
[404595376,1770323440142,-487.0,0.00038998,2]
[404595377,1770323440151,-487.0,0.00038998,2]
[404595378,1770323440162,-487.0,0.00038998,2]
[404595379,1770323440172,-487.0,0.00038998,2]
[404595380,1770323440182,-487.0,0.00038998,2]
[404595381,1770323440192,-487.0,0.00038998,2]
[404595382,1770323440202,-487.0,0.00038998,2]
[404595383,1770323440216,-487.0,0.00038998,2]
[404595384,1770323440225,-487.0,0.00038998,2]
[404595386,1770323440234,-487.0,0.00038998,2]
[404595387,1770323440244,-487.0,0.00038998,2]
[404595388,1770323440253,-487.0,0.00038998,2]
[404595389,1770323440262,-487.0,0.00038998,2]
[404595391,1770323440272,-487.0,0.00038998,2]
[404595393,1770323440281,-487.0,0.00038998,2]
[404595394,1770323440291,-487.0,0.00038998,2]
[404595396,1770323440300,-487.0,0.00038998,2]
[404595398,1770323440309,-487.0,0.00038998,2]
[404595400,1770323440319,-769.72,0.00038998,2]
[404595402,1770323440328,-25000.0,0.00039,120]
[404595404,1770323440337,-1041.66666667,0.00039,120]
[404595406,1770323440347,-313.12,0.00039002,120]
[404595407,1770323440356,-874.2664699,0.00039081,2]
[404595408,1770323440365,-153.62,0.00039098,120]
[404595409,1770323440375,-313.12,0.00039102,120]
[404595410,1770323440384,-155.27499095,0.00039118,30]
[404595411,1770323440399,-155.27499095,0.00039118,30]
[404595412,1770323440414,-1691.23532856,0.00039145,2]
[404595413,1770323440423,-153.62,0.00039198,120]
[404595414,1770323440432,-313.12,0.00039202,120]
[404595415,1770323440442,-672.44631815,0.00039265,7]
[404595416,1770323440451,-370.0,0.00039283,2]
[404595417,1770323440468,-1419.09843482,0.0003929,3]
[404595418,1770323440479,-153.62,0.00039298,120]
[404595419,1770323440488,-29756.04670176,0.000393,15]
[404595420,1770323440498,-20684.72,0.000393,2]
[404595421,1770323440507,-313.12,0.00039302,120]
[404595422,1770323440516,-315.56,0.00039358,3]
[404595423,1770323440526,-153.62,0.00039398,120]
[404595424,1770323440535,-313.12,0.00039402,120]
[404595425,1770323440545,-1419.09843482,0.00039441,3]
[404595426,1770323440555,-271.49660822,0.00039451,7]
[404595427,1770323440564,-190.65417529,0.00039451,7]
[404595428,1770323440574,-181.80546326,0.00039451,7]
[404595429,1770323440583,-535.56038518,0.00039451,7]
[404595430,1770323440593,-800.0,0.00039452,30]
[404595431,1770323440603,-328.07555205,0.00039477,2]
[404595433,1770323440612,-337.61676875,0.00039477,2]
[404595435,1770323440622,-607.71018375,0.00039477,2]
[404595436,1770323440631,-341.41974555,0.00039477,2]
[404595437,1770323440640,-606.36146811,0.00039477,2]
[404595438,1770323440650,-480.77524373,0.00039477,2]
[404595439,1770323440659,-865.39543872,0.00039477,2]
[404595440,1770323440669,-380.60345759,0.00039477,2]
[404595441,1770323440679,-380.77815354,0.00039477,2]
[404595442,1770323440688,-455.36908845,0.00039477,2]
[404595443,1770323440697,-328.54819252,0.00039477,2]
[404595444,1770323440712,-153.62,0.00039498,120]
[404595445,1770323440721,-313.12,0.00039502,120]
[404595446,1770323440731,-8918.04645504,0.00039542,2]
[404595447,1770323440749,-435.17503262,0.0003955,2]
[404595448,1770323440759,-375.48364859,0.0003955,2]
[404595449,1770323440768,-153.62,0.00039598,120]
[404595450,1770323440777,-151.0,0.000396,15]
[404595451,1770323440787,-250.0,0.000396,14]
[404595452,1770323440796,-250.0,0.000396,14]
[404595453,1770323440806,-250.0,0.000396,14]
[404595454,1770323440815,-250.0,0.000396,14]
[404595455,1770323440824,-250.0,0.000396,14]
[404595456,1770323440833,-250.0,0.000396,14]
[404595457,1770323440842,-250.0,0.000396,14]
[404595458,1770323440853,-250.0,0.000396,14]
[404595459,1770323440862,-221.2,0.000396,14]
[404595460,1770323440872,-313.12,0.00039602,120]
[404595461,1770323440881,-1419.09843482,0.0003961,3]
[404595462,1770323440891,-3876.0,0.00039618,7]
[404595463,1770323440903,-2000.0,0.0003962,3]
[404595464,1770323440912,-2000.0,0.0003962,3]
[404595465,1770323440922,-2000.0,0.0003962,3]
[404595466,1770323440932,-2000.0,0.0003962,3]
[404595467,1770323440942,-2000.0,0.0003962,3]
[404595468,1770323440955,-2000.0,0.0003962,3]
[404595469,1770323440969,-2000.0,0.0003962,3]
[404595470,1770323440979,-2000.0,0.0003962,3]
[404595471,1770323440989,-2000.0,0.0003962,3]
[404595472,1770323440999,-2000.0,0.0003962,3]
[404595473,1770323441008,-2000.0,0.0003962,3]
[404595474,1770323441018,-2000.0,0.0003962,3]
[404595475,1770323441027,-2000.0,0.0003962,3]
[404595476,1770323441036,-2000.0,0.0003962,3]
[404595477,1770323441045,-2000.0,0.0003962,3]
[404595478,1770323441054,-544.2100725,0.00039634,2]
[404595479,1770323441063,-2664.0440818,0.00039634,2]
[404595480,1770323441073,-3248.8021935,0.00039634,2]
[404595481,1770323441084,-8253.7983008,0.00039634,2]
[404595482,1770323441093,-849.483871,0.00039634,2]
[404595483,1770323441103,-1237.6352292,0.00039634,2]
[404595484,1770323441113,-184.897222,0.00039634,2]
[404595485,1770323441123,-700.9869003,0.00039638,120]
[404595486,1770323441133,-329.56,0.00039638,120]
[404595487,1770323441142,-151.0,0.00039641,60]
[404595488,1770323441151,-151.0,0.00039641,60]
[404595489,1770323441161,-160.800759,0.00039641,120]
[404595490,1770323441171,-3060496.09800277,0.00039641,30]
[404595491,1770323441399,-65846.00000019,0.00039641,30]
[404595492,1770323441540,-150.0,0.00021607,2]
[404595493,1770323441550,-177.0,0.00023607,2]
[404595494,1770323441559,-204.0,0.00025607,2]
[404595495,1770323441569,-231.0,0.00027607,2]
[404595496,1770323441578,-258.0,0.00029607,2]
[404595497,1770323441587,-285.0,0.00031607,2]
[404595498,1770323441597,-305.39762501,0.00033607,120]
[404595499,1770323441606,-250.0,0.00037627,2]
[404595500,1770323441615,-250.0,0.00037627,2]
[404595501,1770323441625,-250.0,0.00037627,2]
[404595502,1770323441634,-250.0,0.00037627,2]
[404595503,1770323441643,-126.40823494,0.0003929,10]
[404595504,1770323441655,-349.48312,0.0003929,10]
[404595570,1770323444165,-1023.13826047,0.0003929,10]
[404595641,1770323444997,-390.0,0.0003929,10]
[404595642,1770323445008,-1118.44038459,0.0003929,10]
[404595643,1770323445017,-569.45114228,0.00039641,30]
[404595766,1770323445826,-6056.1045271,0.00039641,30]
[404595769,1770323445838,-321.8,0.00039641,30]
[404595783,1770323445893,-13137.99999997,0.00039641,30]
[404595788,1770323445904,-37760.0,0.00039641,30]
[404595821,1770323446066,-12853.20000001,0.00039641,30]
[404595824,1770323446079,-12799.99999999,0.00039641,30]
[404595905,1770323469852,504.08949317,0.00013699,2]
[404595906,1770323473135,478.19814633,0.00013699,2]
[404595907,1770323477128,500.0,0.00013273,2]
[404595908,1770323480077,300.0,0.00013673,2]
[404595909,1770323480359,500.0,0.00013273,2]
[404595910,1770323481902,500.0,0.00013699,2]
[404595911,1770323482633,500.0,0.00013273,2]
[404595912,1770323485133,500.0,0.00013273,2]
[404595913,1770323485186,1000.0,0.00013821,2]
[404595914,1770323485335,500.0,0.00013273,2]
[404595915,1770323485371,608.32613042,0.00013273,2]
[404595916,1770323485412,500.0,0.00013273,2]
[404595918,1770323529942,500.0,0.00013273,2]
[404595919,1770323530000,1000.0,0.00013821,2]
[404595920,1770323530175,500.0,0.00013273,2]
[404595921,1770323587408,500.0,0.00013273,2]
[404595922,1770323587600,500.0,0.00013273,2]
[404595923,1770323589390,500.0,0.00013699,2]
[404595924,1770323600705,619.58988389,0.00013273,2]
[404595925,1770323601032,300.0,0.00013673,2]
[404595926,1770323602375,500.33367382,0.00013699,2]
[404595927,1770323605606,500.0,0.00013273,2]
[404595940,1770323641381,5000.0,0.0001401,2]
[404595941,1770323643718,338.94929444,0.00013699,2]
[404595942,1770323644274,500.0,0.00013273,2]
[404595943,1770323649512,5000.0,0.0001401,2]
[404595944,1770323650288,500.0,0.00013273,2]
[404595945,1770323664418,5000.0,0.0001401,2]
[404595946,1770323672443,2397.11011949,0.0001401,2]
[404595947,1770323687413,5000.0,0.0001401,2]
[404595948,1770323707485,500.0,0.00013273,2]
[404595949,1770323709869,5000.0,0.0001401,2]
[404595950,1770323722350,500.0,0.00013699,2]
[404595951,1770323722698,300.0,0.00013673,2]
[404595952,1770323726737,500.0,0.00013273,2]
[404595953,1770323726787,220.23495117,0.00013821,2]
[404595955,1770323828451,500.0,0.00013699,2]
[404595956,1770323840604,500.0,0.00013273,2]
[404595957,1770323840652,725.35356092,0.00013821,2]
[404595958,1770323843082,500.0,0.00013273,2]
[404595959,1770323843112,524.47405626,0.00013821,2]
[404595960,1770323843331,500.0,0.00013699,2]
[404595961,1770323846040,500.0,0.00013699,2]
[404595962,1770323882971,500.0,0.00013699,2]
[404595963,1770323884106,508.16028706,0.00013699,2]
[404595964,1770323884274,500.0,0.00013699,2]
[404595965,1770323884302,500.0,0.00013699,2]
[404595966,1770323889339,500.0,0.00013699,2]
[404595967,1770323942907,500.0,0.00013273,2]
[404595968,1770323942936,180.50448586,0.00013699,2]
[404595969,1770323961352,500.0,0.00013699,2]
[404595970,1770323962574,500.0,0.00013699,2]
[404595971,1770324008460,504.37145005,0.00013699,2]
[404595976,1770324064187,175.69914693,0.00013273,2]
[404595977,1770324066454,500.0,0.00013273,2]
[404595978,1770324066485,500.0,0.00013273,2]
[404595979,1770324066922,500.0,0.00013273,2]
[404595980,1770324066953,500.0,0.00013273,2]
[404595981,1770324066979,500.0,0.00013273,2]
[404595982,1770324078288,503.44585803,0.00013699,2]
[404595983,1770324080743,315.76260307,0.00013699,2]
[404595984,1770324082428,314.14228189,0.00013273,2]
[404595985,1770324086387,500.0,0.00013699,2]
[404595988,1770324183749,1000.79142467,0.00013973,2]
[404595989,1770324187242,500.0,0.00013699,2]
[404596010,1770324303089,500.0,0.00013273,2]
[404596011,1770324303137,294.95103003,0.00013821,2]
[404596012,1770324303264,500.0,0.00013273,2]
[404596013,1770324303364,179.48496468,0.00013273,2]
[404596043,1770324631816,-891.48049999,0.00014887,2]
[404596048,1770324631871,-492.434724,0.00014887,2]
[404596049,1770324631883,-1038.47620558,0.00014887,2]
[404596612,1770324637761,-2577.60857043,0.00014887,2]
[404596615,1770324637772,-634.0,0.00014887,2]
[404596617,1770324637781,-150.0,0.0001519,2]
[404596619,1770324637790,-3050.89,0.00015342,2]
[404596621,1770324637802,-177.0,0.0001719,2]
[404596623,1770324637812,-185.754853,0.00017924,2]
[404596625,1770324637821,-192.0,0.00018023,2]
[404596627,1770324637830,-950.1269561,0.00018024,2]
[404596629,1770324637839,-204.0,0.0001919,2]
[404596631,1770324637848,-231.0,0.0002119,2]
[404596634,1770324637857,-181.28833722,0.00021785,2]
[404596637,1770324637866,-50000.0,0.00021885,2]
[404596639,1770324637875,-500.0,0.00021886,2]
[404596641,1770324637885,-500.0,0.00021886,2]
[404596643,1770324637894,-337.37281047,0.00021886,2]
[404596645,1770324637902,-1694.10488694,0.0002299,2]
[404596647,1770324637912,-258.0,0.0002319,2]
[404596649,1770324637920,-500.0,0.00023885,2]
[404596651,1770324637929,-358.72251981,0.00023885,2]
[404596653,1770324637938,-500.0,0.00023886,2]
[404596655,1770324637947,-500.0,0.00023886,2]
[404596656,1770324637956,-285.0,0.0002519,2]
[404596658,1770324637965,-1694.10488689,0.00025351,2]
[404596660,1770324637974,-312.0,0.0002719,2]
[404596663,1770324637986,-1694.10488689,0.00027712,2]
[404596664,1770324637995,-1000.0,0.00029051,30]
[404596666,1770324638004,-184.30546284,0.0002919,2]
[404596669,1770324638013,-1694.10488689,0.00030073,2]
[404596671,1770324638022,-181.2883372,0.00030465,2]
[404596673,1770324638031,-155.13283682,0.00031607,14]
[404596674,1770324638041,-518.94139039,0.0003217,120]
[404596676,1770324638050,-2721.6180597,0.00032171,2]
[404596678,1770324638063,-257.1211002,0.00032221,30]
[404596680,1770324638072,-1694.10488689,0.00032434,2]
[404596682,1770324638082,-214.24220039,0.0003244,30]
[404596684,1770324638091,-214.24220039,0.00032714,30]
[404596686,1770324638101,-4000.0,0.00032877,60]
[404596702,1770324638244,-178.53516699,0.00033043,30]
[404596704,1770324638254,-514.62831693,0.0003384,2]
[404596706,1770324638264,-377.7550763,0.00034168,2]
[404596708,1770324638274,-169.507,0.00034168,38]
[404596709,1770324638283,-582.66218043,0.00034338,2]
[404596711,1770324638293,-447.92431962,0.00034488,2]
[404596713,1770324638304,-1694.10488689,0.00034795,2]
[404596714,1770324638314,-2000.0,0.00034999,2]
[404596716,1770324638324,-385.95027282,0.00035735,2]
[404596717,1770324638334,-255.468716,0.0003648,60]
[404596719,1770324638343,-191.601536,0.0003648,60]
[404596720,1770324638353,-500.0,0.0003648,60]
[404596722,1770324638362,-191.601538,0.00036665,60]
[404596724,1770324638372,-500.0,0.00036754,60]
[404596725,1770324638381,-1737.370708,0.0003676,60]
[404596727,1770324638391,-1705.878438,0.00036816,60]
[404596728,1770324638400,-255.468715,0.00036855,60]
[404596730,1770324638410,-150.71,0.00036877,60]
[404596732,1770324638420,-154.88,0.00036877,60]
[404596733,1770324638430,-151.32,0.00036895,60]
[404596735,1770324638439,-150.71,0.00036895,60]
[404596736,1770324638449,-156.56,0.00036901,60]
[404596738,1770324638459,-154.88,0.00036977,60]
[404596740,1770324638469,-151.32,0.00036995,60]
[404596741,1770324638478,-156.56,0.00037001,60]